[Event "Late-Titled-Tuesday-Blitz-September-12-2023"]
[Site "Chess.com"]
[Date "2023.09.12"]
[Round "11"]
[White "dropstoneDP"]
[Black "lachesisQ"]
[Result "1-0"]
[WhiteElo "3032"]
[BlackElo "3081"]
[TimeControl "180+1"]
[EndTime "15:58:44 PDT"]
[Termination "dropstoneDP won by resignation"]

1. e4 {[%clk 0:02:59.7]} 1... c5 {[%clk 0:03:00.4]} 2. Nf3 {[%clk 0:02:59.8]}
2... e6 {[%clk 0:03:01]} 3. d4 {[%clk 0:02:59.6]} 3... cxd4 {[%clk 0:03:01.9]}
4. Nxd4 {[%clk 0:03:00.4]} 4... Nc6 {[%clk 0:03:02.4]} 5. Nc3 {[%clk 0:02:58.8]}
5... Qc7 {[%clk 0:03:02.7]} 6. Nxc6 {[%clk 0:02:56.2]} 6... bxc6 {[%clk
0:03:02.7]} 7. Bd3 {[%clk 0:02:56.7]} 7... d5 {[%clk 0:03:01.7]} 8. Qe2 {[%clk
0:02:55.2]} 8... Nf6 {[%clk 0:03:00.7]} 9. exd5 {[%clk 0:02:55.4]} 9... cxd5
{[%clk 0:03:00.2]} 10. Nb5 {[%clk 0:02:55.5]} 10... Qb8 {[%clk 0:02:54.6]} 11.
g3 {[%clk 0:02:55.5]} 11... Bd6 {[%clk 0:02:29]} 12. Nxd6+ {[%clk 0:02:55.4]}
12... Qxd6 {[%clk 0:02:29.9]} 13. Bf4 {[%clk 0:02:56]} 13... Qe7 {[%clk
0:02:16.4]} 14. O-O-O {[%clk 0:02:55.5]} 14... O-O {[%clk 0:02:14.3]} 15. Be5
{[%clk 0:02:35.1]} 15... Bb7 {[%clk 0:02:14.1]} 16. Rhe1 {[%clk 0:02:33.6]}
16... Rfc8 {[%clk 0:02:13.4]} 17. Kb1 {[%clk 0:02:33.6]} 17... a5 {[%clk
0:02:12.1]} 18. f4 {[%clk 0:02:17.6]} 18... Ne4 {[%clk 0:02:06.5]} 19. Qe3
{[%clk 0:01:54.1]} 19... a4 {[%clk 0:02:03]} 20. a3 {[%clk 0:01:53.9]} 20... f6
{[%clk 0:01:53.3]} 21. Bd4 {[%clk 0:01:52.1]} 21... Bc6 {[%clk 0:01:50.7]} 22.
Ka1 {[%clk 0:01:50.9]} 22... Rab8 {[%clk 0:01:49.6]} 23. g4 {[%clk 0:01:50]}
23... Qc7 {[%clk 0:01:35.9]} 24. g5 {[%clk 0:01:40.1]} 24... e5 {[%clk
0:01:32.9]} 25. fxe5 {[%clk 0:01:39.9]} 25... fxe5 {[%clk 0:01:32.7]} 26. Bxe4
{[%clk 0:01:39.2]} 26... exd4 {[%clk 0:01:29.5]} 27. Bxh7+ {[%clk 0:01:39.4]}
27... Kxh7 {[%clk 0:01:29.5]} 28. Qh3+ {[%clk 0:01:39.8]} 28... Kg8 {[%clk
0:00:53.2]} 29. g6 {[%clk 0:01:40.7]} 1-0

[Event "Late-Titled-Tuesday-Blitz-September-12-2023"]
[Site "Chess.com"]
[Date "2023.09.12"]
[Round "11"]
[White "AsaHoffmann"]
[Black "rdarruda"]
[Result "0-1"]
[WhiteElo "2336"]
[BlackElo "2504"]
[TimeControl "180+1"]
[EndTime "15:58:54 PDT"]
[Termination "rdarruda won by resignation"]

1. d4 {[%clk 0:02:56.9]} 1... Nf6 {[%clk 0:02:38.3]} 2. Bg5 {[%clk 0:02:55.9]}
2... e6 {[%clk 0:02:38]} 3. Nd2 {[%clk 0:02:55.5]} 3... d5 {[%clk 0:02:36.8]} 4.
e3 {[%clk 0:02:55.4]} 4... Be7 {[%clk 0:02:36.9]} 5. Bd3 {[%clk 0:02:55]} 5...
O-O {[%clk 0:02:36.9]} 6. f4 {[%clk 0:02:54]} 6... c5 {[%clk 0:02:36.4]} 7. c3
{[%clk 0:02:53.8]} 7... Nc6 {[%clk 0:02:36]} 8. Ngf3 {[%clk 0:02:53.6]} 8... h6
{[%clk 0:02:33.4]} 9. Bh4 {[%clk 0:02:53.3]} 9... Ng4 {[%clk 0:02:32.8]} 10.
Bxe7 {[%clk 0:02:51.7]} 10... Qxe7 {[%clk 0:02:32.8]} 11. Qe2 {[%clk 0:02:51.8]}
11... Bd7 {[%clk 0:02:29.4]} 12. h3 {[%clk 0:02:51.3]} 12... Nf6 {[%clk
0:02:29.1]} 13. Ne5 {[%clk 0:02:51.3]} 13... Rfd8 {[%clk 0:02:24.1]} 14. O-O
{[%clk 0:02:50.9]} 14... Be8 {[%clk 0:02:23.4]} 15. g4 {[%clk 0:02:40.5]} 15...
Nd7 {[%clk 0:02:23.3]} 16. Qg2 {[%clk 0:02:29.9]} 16... f6 {[%clk 0:02:18.9]}
17. Nef3 {[%clk 0:02:27.4]} 17... e5 {[%clk 0:02:10.1]} 18. fxe5 {[%clk
0:02:21.9]} 18... fxe5 {[%clk 0:02:11]} 19. Bf5 {[%clk 0:02:17.8]} 19... Nf6
{[%clk 0:02:04.3]} 20. Rae1 {[%clk 0:02:07.8]} 20... e4 {[%clk 0:01:57.1]} 21.
Nh4 {[%clk 0:02:00.2]} 21... cxd4 {[%clk 0:01:48.4]} 22. exd4 {[%clk 0:01:55.7]}
22... Qd6 {[%clk 0:01:41.7]} 23. Ng6 {[%clk 0:01:48.8]} 23... Bxg6 {[%clk
0:01:39.1]} 24. Bxg6 {[%clk 0:01:48.3]} 24... Ne7 {[%clk 0:01:39.7]} 25. Bf5
{[%clk 0:01:42]} 25... Nxf5 {[%clk 0:01:39.2]} 26. Rxf5 {[%clk 0:01:41.4]} 26...
Rf8 {[%clk 0:01:38.2]} 27. Ref1 {[%clk 0:01:36.2]} 27... g6 {[%clk 0:01:30.8]}
28. Re5 {[%clk 0:01:31]} 28... Nd7 {[%clk 0:01:26.6]} 29. Nxe4 {[%clk
0:01:07.4]} 29... Rxf1+ {[%clk 0:01:21.2]} 30. Qxf1 {[%clk 0:01:02.6]} 30...
dxe4 {[%clk 0:01:21.2]} 31. Qc4+ {[%clk 0:00:58.3]} 31... Kg7 {[%clk 0:01:06]}
32. Re6 {[%clk 0:00:50.7]} 32... Qg3+ {[%clk 0:01:05.4]} 0-1

[Event "Late-Titled-Tuesday-Blitz-September-12-2023"]
[Site "Chess.com"]
[Date "2023.09.12"]
[Round "11"]
[White "MarcoRiehle"]
[Black "angryspacevoid"]
[Result "1-0"]
[WhiteElo "2782"]
[BlackElo "2592"]
[TimeControl "180+1"]
[EndTime "15:59:05 PDT"]
[Termination "MarcoRiehle won by checkmate"]

1. e4 {[%clk 0:03:00]} 1... e5 {[%clk 0:02:58.9]} 2. Nf3 {[%clk 0:03:00.1]} 2...
Nf6 {[%clk 0:02:56.5]} 3. Nxe5 {[%clk 0:03:00.1]} 3... d6 {[%clk 0:02:56.7]} 4.
Nf3 {[%clk 0:03:00.3]} 4... Nxe4 {[%clk 0:02:56.9]} 5. Nc3 {[%clk 0:03:01]} 5...
Nxc3 {[%clk 0:02:57.1]} 6. dxc3 {[%clk 0:03:01.7]} 6... Be7 {[%clk 0:02:56.7]}
7. Bf4 {[%clk 0:03:01.8]} 7... Be6 {[%clk 0:02:52.9]} 8. Nd4 {[%clk 0:02:59.1]}
8... O-O {[%clk 0:02:45.7]} 9. Qd2 {[%clk 0:02:58.2]} 9... c5 {[%clk 0:02:35.7]}
10. Nxe6 {[%clk 0:02:57.3]} 10... fxe6 {[%clk 0:02:36.6]} 11. h4 {[%clk
0:02:52]} 11... Nc6 {[%clk 0:02:23.1]} 12. O-O-O {[%clk 0:02:50.4]} 12... Qa5
{[%clk 0:02:15.9]} 13. Kb1 {[%clk 0:02:48.7]} 13... Rad8 {[%clk 0:02:15.2]} 14.
g3 {[%clk 0:02:45.4]} 14... b5 {[%clk 0:01:59.3]} 15. Bh3 {[%clk 0:02:44.4]}
15... e5 {[%clk 0:01:54.7]} 16. Bg5 {[%clk 0:02:39.8]} 16... Kh8 {[%clk
0:01:42.2]} 17. Bg2 {[%clk 0:02:34.3]} 17... d5 {[%clk 0:01:28.8]} 18. Bxd5
{[%clk 0:02:33.1]} 18... b4 {[%clk 0:01:28.8]} 19. c4 {[%clk 0:02:24.6]} 19...
Bxg5 {[%clk 0:01:09.5]} 20. hxg5 {[%clk 0:02:22.3]} 20... Ne7 {[%clk 0:01:07]}
21. g6 {[%clk 0:02:07.7]} 21... Nxg6 {[%clk 0:01:06.2]} 22. Rxh7+ {[%clk
0:02:04.4]} 22... Kxh7 {[%clk 0:01:02.5]} 23. Rh1+ {[%clk 0:02:04.8]} 23... Nh4
{[%clk 0:01:03.2]} 24. Qg5 {[%clk 0:01:54.1]} 24... Rxd5 {[%clk 0:00:58.9]} 25.
Qxh4+ {[%clk 0:01:53.4]} 25... Kg8 {[%clk 0:00:58.8]} 26. Qh7+ {[%clk
0:01:53.5]} 26... Kf7 {[%clk 0:00:58.1]} 27. cxd5 {[%clk 0:01:53.7]} 27... Qc7
{[%clk 0:00:29.6]} 28. Qf5+ {[%clk 0:01:51.3]} 28... Kg8 {[%clk 0:00:23.9]} 29.
Qe6+ {[%clk 0:01:50.1]} 29... Qf7 {[%clk 0:00:22.2]} 30. Qxe5 {[%clk 0:01:49.5]}
30... Qxf2 {[%clk 0:00:20.7]} 31. b3 {[%clk 0:01:49.2]} 31... Rf6 {[%clk
0:00:13.6]} 32. d6 {[%clk 0:01:45.7]} 32... Kf7 {[%clk 0:00:03.2]} 33. Qe7+
{[%clk 0:01:43.9]} 33... Kg6 {[%clk 0:00:03.1]} 34. d7 {[%clk 0:01:44]} 34...
Qg2 {[%clk 0:00:02]} 35. Qe8+ {[%clk 0:01:42.4]} 35... Kg5 {[%clk 0:00:02]} 36.
Qh5# {[%clk 0:01:41.6]} 1-0

[Event "Late-Titled-Tuesday-Blitz-September-12-2023"]
[Site "Chess.com"]
[Date "2023.09.12"]
[Round "11"]
[White "Langua_Chess"]
[Black "PepeCuenca"]
[Result "0-1"]
[WhiteElo "2486"]
[BlackElo "2722"]
[TimeControl "180+1"]
[EndTime "15:59:05 PDT"]
[Termination "PepeCuenca won by resignation"]

1. d4 {[%clk 0:03:00.9]} 1... d6 {[%clk 0:02:55]} 2. c4 {[%clk 0:02:36.7]} 2...
Nf6 {[%clk 0:02:54]} 3. Nc3 {[%clk 0:02:36.8]} 3... g6 {[%clk 0:02:54.2]} 4. e4
{[%clk 0:02:36.2]} 4... Bg7 {[%clk 0:02:54.9]} 5. h3 {[%clk 0:02:36.6]} 5... O-O
{[%clk 0:02:52.6]} 6. Be3 {[%clk 0:02:37.2]} 6... c6 {[%clk 0:02:43.5]} 7. g4
{[%clk 0:01:52.3]} 7... a6 {[%clk 0:02:39.8]} 8. a4 {[%clk 0:01:48.8]} 8... a5
{[%clk 0:02:38.1]} 9. Be2 {[%clk 0:01:42.1]} 9... Na6 {[%clk 0:02:37.6]} 10. h4
{[%clk 0:01:39.2]} 10... e5 {[%clk 0:02:32.9]} 11. d5 {[%clk 0:01:36.1]} 11...
cxd5 {[%clk 0:02:32.2]} 12. cxd5 {[%clk 0:01:34.6]} 12... Nd7 {[%clk 0:02:29.2]}
13. g5 {[%clk 0:01:25.3]} 13... f5 {[%clk 0:02:17.6]} 14. gxf6 {[%clk
0:01:19.1]} 14... Bxf6 {[%clk 0:02:03.1]} 15. h5 {[%clk 0:01:14]} 15... g5
{[%clk 0:01:48]} 16. h6 {[%clk 0:01:13]} 16... Ndc5 {[%clk 0:01:47.3]} 17. Nf3
{[%clk 0:00:44.6]} 17... Kh8 {[%clk 0:01:42.1]} 18. Rg1 {[%clk 0:00:43.3]} 18...
g4 {[%clk 0:01:40]} 19. Nh2 {[%clk 0:00:35.9]} 19... Bg5 {[%clk 0:01:31.7]} 20.
Qd2 {[%clk 0:00:30]} 20... Bf4 {[%clk 0:01:23.8]} 21. Bxf4 {[%clk 0:00:17.7]}
21... Rxf4 {[%clk 0:01:20.2]} 22. Rd1 {[%clk 0:00:16.5]} 22... Qh4 {[%clk
0:01:17.2]} 23. Nxg4 {[%clk 0:00:15]} 23... Bxg4 {[%clk 0:01:14.9]} 0-1

[Event "Late-Titled-Tuesday-Blitz-September-12-2023"]
[Site "Chess.com"]
[Date "2023.09.12"]
[Round "11"]
[White "Zampronha1971"]
[Black "micke12a"]
[Result "0-1"]
[WhiteElo "2283"]
[BlackElo "2370"]
[TimeControl "180+1"]
[EndTime "15:59:09 PDT"]
[Termination "micke12a won by resignation"]

1. e4 {[%clk 0:03:00.9]} 1... c5 {[%clk 0:02:56.7]} 2. Nf3 {[%clk 0:03:01.2]}
2... d6 {[%clk 0:02:57.2]} 3. d4 {[%clk 0:03:01.6]} 3... cxd4 {[%clk 0:02:58.1]}
4. Nxd4 {[%clk 0:03:01.9]} 4... Nf6 {[%clk 0:02:59]} 5. Nc3 {[%clk 0:03:01.7]}
5... g6 {[%clk 0:02:59.9]} 6. Be3 {[%clk 0:03:00.2]} 6... Bg7 {[%clk 0:03:00.3]}
7. f3 {[%clk 0:03:00.6]} 7... O-O {[%clk 0:03:01]} 8. Qd2 {[%clk 0:03:00.8]}
8... Nc6 {[%clk 0:03:01.8]} 9. Bc4 {[%clk 0:03:01.2]} 9... Nxd4 {[%clk
0:03:01.5]} 10. Bxd4 {[%clk 0:03:01]} 10... Be6 {[%clk 0:03:02.3]} 11. Bb3
{[%clk 0:03:00.2]} 11... Qa5 {[%clk 0:03:01.6]} 12. O-O-O {[%clk 0:02:57.8]}
12... b5 {[%clk 0:03:01.9]} 13. Kb1 {[%clk 0:02:56.5]} 13... b4 {[%clk
0:03:00.9]} 14. Nd5 {[%clk 0:02:56.4]} 14... Bxd5 {[%clk 0:02:56.1]} 15. exd5
{[%clk 0:02:56.8]} 15... Qb5 {[%clk 0:02:55.5]} 16. Rhe1 {[%clk 0:02:40.6]}
16... a5 {[%clk 0:02:53.6]} 17. Qe2 {[%clk 0:02:39.7]} 17... Qxe2 {[%clk
0:02:52.1]} 18. Rxe2 {[%clk 0:02:40.6]} 18... a4 {[%clk 0:02:52.7]} 19. Bc4
{[%clk 0:02:40.7]} 19... Rfc8 {[%clk 0:02:52.9]} 20. b3 {[%clk 0:02:40.5]} 20...
axb3 {[%clk 0:02:52.8]} 21. cxb3 {[%clk 0:02:40.1]} 21... Rc7 {[%clk 0:02:53.4]}
22. Rde1 {[%clk 0:02:36.2]} 22... Kf8 {[%clk 0:02:51.6]} 23. g4 {[%clk
0:02:34.6]} 23... Ne8 {[%clk 0:02:50.2]} 24. Bxg7+ {[%clk 0:02:30.5]} 24... Nxg7
{[%clk 0:02:51.1]} 25. Re4 {[%clk 0:02:17.9]} 25... Ne8 {[%clk 0:02:47.2]} 26.
Bb5 {[%clk 0:02:18.2]} 26... Nf6 {[%clk 0:02:45.7]} 27. Rd4 {[%clk 0:02:12.4]}
27... Ra5 {[%clk 0:02:42.9]} 28. Bc6 {[%clk 0:02:12.1]} 28... e6 {[%clk
0:02:37.6]} 29. Rxb4 {[%clk 0:02:01.1]} 29... Nxd5 {[%clk 0:02:34]} 30. Bxd5
{[%clk 0:01:55.8]} 30... Rxd5 {[%clk 0:02:34.9]} 31. Re2 {[%clk 0:01:47.1]}
31... Rd3 {[%clk 0:02:32.4]} 32. Rf2 {[%clk 0:01:45.3]} 32... Rcc3 {[%clk
0:02:27]} 33. Kb2 {[%clk 0:01:45.2]} 33... Rxf3 {[%clk 0:02:23.4]} 34. Rxf3
{[%clk 0:01:45.4]} 34... Rxf3 {[%clk 0:02:23.4]} 35. a4 {[%clk 0:01:45.9]} 35...
Rf2+ {[%clk 0:01:48.9]} 36. Ka3 {[%clk 0:01:45]} 36... Rf1 {[%clk 0:01:45.1]}
37. Rd4 {[%clk 0:01:28.6]} 37... d5 {[%clk 0:01:40.9]} 38. a5 {[%clk 0:01:28.5]}
38... Ke7 {[%clk 0:01:39.4]} 39. b4 {[%clk 0:01:28.1]} 39... Kd6 {[%clk
0:01:39]} 40. Ka4 {[%clk 0:01:21.2]} 40... e5 {[%clk 0:01:35.9]} 41. Rd2 {[%clk
0:01:20.5]} 41... e4 {[%clk 0:01:36.1]} 42. b5 {[%clk 0:01:17.4]} 42... e3
{[%clk 0:01:33.5]} 43. Rb2 {[%clk 0:01:10.1]} 43... Rf2 {[%clk 0:01:25.4]} 44.
Rb1 {[%clk 0:01:07.6]} 44... e2 {[%clk 0:01:22.2]} 45. b6 {[%clk 0:01:07.1]}
45... Rf1 {[%clk 0:01:19.8]} 0-1

[Event "Late-Titled-Tuesday-Blitz-September-12-2023"]
[Site "Chess.com"]
[Date "2023.09.12"]
[Round "11"]
[White "Korchmar_Vasiliy"]
[Black "ChristopherYoo"]
[Result "0-1"]
[WhiteElo "2716"]
[BlackElo "3002"]
[TimeControl "180+1"]
[EndTime "15:59:14 PDT"]
[Termination "ChristopherYoo won by resignation"]

1. e4 {[%clk 0:03:00.9]} 1... c5 {[%clk 0:02:59.6]} 2. d4 {[%clk 0:03:00.9]}
2... cxd4 {[%clk 0:02:59.3]} 3. Qxd4 {[%clk 0:03:01.8]} 3... Nc6 {[%clk
0:02:59]} 4. Qd3 {[%clk 0:03:02.5]} 4... Nf6 {[%clk 0:02:58.1]} 5. Nc3 {[%clk
0:03:02.8]} 5... g6 {[%clk 0:02:57.7]} 6. Nf3 {[%clk 0:03:02.7]} 6... Bg7 {[%clk
0:02:58.1]} 7. Be2 {[%clk 0:03:03.4]} 7... O-O {[%clk 0:02:58.7]} 8. O-O {[%clk
0:03:04.1]} 8... d6 {[%clk 0:02:59.4]} 9. Nd5 {[%clk 0:03:04.7]} 9... Bg4 {[%clk
0:02:58.8]} 10. c3 {[%clk 0:03:03.7]} 10... Nd7 {[%clk 0:02:59]} 11. Bg5 {[%clk
0:03:02.3]} 11... h6 {[%clk 0:02:59.1]} 12. Bh4 {[%clk 0:03:02.3]} 12... g5
{[%clk 0:02:58.9]} 13. Bg3 {[%clk 0:03:02.5]} 13... Nc5 {[%clk 0:02:59.2]} 14.
Qc2 {[%clk 0:02:56.9]} 14... e6 {[%clk 0:02:58]} 15. Ne3 {[%clk 0:02:54]} 15...
Bxf3 {[%clk 0:02:57.9]} 16. Bxf3 {[%clk 0:02:54.9]} 16... Qe7 {[%clk 0:02:49.9]}
17. Rad1 {[%clk 0:02:53.8]} 17... Be5 {[%clk 0:02:49.8]} 18. Nc4 {[%clk
0:02:47.8]} 18... Bxg3 {[%clk 0:02:47.7]} 19. hxg3 {[%clk 0:02:48.7]} 19... Rfd8
{[%clk 0:02:47.4]} 20. b4 {[%clk 0:02:41.5]} 20... Nd7 {[%clk 0:02:30.5]} 21.
Rxd6 {[%clk 0:02:15.6]} 21... Rac8 {[%clk 0:02:26.9]} 22. Rfd1 {[%clk
0:02:09.9]} 22... b5 {[%clk 0:02:24.4]} 23. Ne3 {[%clk 0:02:03.4]} 23... Kg7
{[%clk 0:01:51.8]} 24. Be2 {[%clk 0:01:26.6]} 24... a6 {[%clk 0:01:49.9]} 25. a4
{[%clk 0:01:25.4]} 25... bxa4 {[%clk 0:01:49]} 26. Bxa6 {[%clk 0:01:25.4]} 26...
Nxb4 {[%clk 0:01:45.5]} 27. Qxa4 {[%clk 0:01:25.6]} 27... Nxa6 {[%clk
0:01:25.6]} 28. Rxd7 {[%clk 0:01:20.2]} 28... Rxd7 {[%clk 0:01:09]} 29. Rxd7
{[%clk 0:01:21.1]} 29... Nc5 {[%clk 0:01:07.6]} 30. Qd4+ {[%clk 0:01:15.1]}
30... Qf6 {[%clk 0:01:06.5]} 31. e5 {[%clk 0:01:05.8]} 31... Qg6 {[%clk
0:01:05.8]} 32. Nc4 {[%clk 0:00:58.9]} 32... Nxd7 {[%clk 0:00:58.7]} 33. Nd6
{[%clk 0:00:57.4]} 33... Ra8 {[%clk 0:00:57.3]} 34. c4 {[%clk 0:00:55.6]} 34...
Qb1+ {[%clk 0:00:53.8]} 35. Kh2 {[%clk 0:00:55.4]} 35... Ra1 {[%clk 0:00:52.4]}
36. g4 {[%clk 0:00:53.9]} 36... Qg1+ {[%clk 0:00:50.8]} 37. Kg3 {[%clk
0:00:54.5]} 37... Ra3+ {[%clk 0:00:50.9]} 38. f3 {[%clk 0:00:54.8]} 38... Qxd4
{[%clk 0:00:50.7]} 0-1

[Event "Late-Titled-Tuesday-Blitz-September-12-2023"]
[Site "Chess.com"]
[Date "2023.09.12"]
[Round "11"]
[White "Jenia84"]
[Black "IMSlavin"]
[Result "0-1"]
[WhiteElo "2365"]
[BlackElo "2255"]
[TimeControl "180+1"]
[EndTime "15:59:20 PDT"]
[Termination "IMSlavin won by resignation"]

1. e4 {[%clk 0:03:00.9]} 1... Nc6 {[%clk 0:03:00.1]} 2. Nf3 {[%clk 0:02:59.2]}
2... d6 {[%clk 0:03:00.1]} 3. d4 {[%clk 0:02:58.8]} 3... Nf6 {[%clk 0:03:00.2]}
4. Nc3 {[%clk 0:02:58.5]} 4... Bg4 {[%clk 0:02:59.8]} 5. Be2 {[%clk 0:02:57.4]}
5... e5 {[%clk 0:02:59.5]} 6. Be3 {[%clk 0:02:57.3]} 6... a6 {[%clk 0:02:58.8]}
7. Qd2 {[%clk 0:02:57.1]} 7... Be7 {[%clk 0:02:58.4]} 8. O-O-O {[%clk 0:02:56]}
8... b5 {[%clk 0:02:57.7]} 9. a3 {[%clk 0:02:53.9]} 9... O-O {[%clk 0:02:56.7]}
10. h3 {[%clk 0:02:54.2]} 10... Bh5 {[%clk 0:02:55.4]} 11. g4 {[%clk 0:02:50.2]}
11... Bg6 {[%clk 0:02:54.6]} 12. Ng5 {[%clk 0:02:43.2]} 12... exd4 {[%clk
0:02:40.4]} 13. Bxd4 {[%clk 0:02:40]} 13... Nxd4 {[%clk 0:02:40.1]} 14. Qxd4
{[%clk 0:02:38.5]} 14... c5 {[%clk 0:02:40.2]} 15. Qe3 {[%clk 0:02:37]} 15... b4
{[%clk 0:02:38.4]} 16. axb4 {[%clk 0:02:26.2]} 16... cxb4 {[%clk 0:02:37.8]} 17.
Nd5 {[%clk 0:02:26.2]} 17... Nxd5 {[%clk 0:02:37]} 18. Rxd5 {[%clk 0:02:25.5]}
18... b3 {[%clk 0:02:16.5]} 19. c3 {[%clk 0:02:14.9]} 19... a5 {[%clk
0:02:12.4]} 20. h4 {[%clk 0:02:12.8]} 20... h6 {[%clk 0:01:56.2]} 21. f4 {[%clk
0:02:02.2]} 21... a4 {[%clk 0:01:49.2]} 22. h5 {[%clk 0:01:42]} 22... Bh7 {[%clk
0:01:15.9]} 23. Nxh7 {[%clk 0:01:40.2]} 23... Kxh7 {[%clk 0:01:16.1]} 24. g5
{[%clk 0:01:34.5]} 24... a3 {[%clk 0:01:16]} 25. bxa3 {[%clk 0:01:31.6]} 25...
Rxa3 {[%clk 0:01:13.9]} 26. g6+ {[%clk 0:01:17.2]} 26... Kh8 {[%clk 0:01:11.5]}
27. Kb2 {[%clk 0:01:04.5]} 27... Qa8 {[%clk 0:01:10.5]} 28. Rb1 {[%clk
0:00:58.4]} 28... Ra2+ {[%clk 0:01:02.5]} 29. Kc1 {[%clk 0:00:57.9]} 29... Rc2+
{[%clk 0:01:01.7]} 30. Kd1 {[%clk 0:00:56.6]} 30... Qa2 {[%clk 0:01:01.1]} 0-1

[Event "Late-Titled-Tuesday-Blitz-September-12-2023"]
[Site "Chess.com"]
[Date "2023.09.12"]
[Round "11"]
[White "salomez"]
[Black "Schwindle"]
[Result "0-1"]
[WhiteElo "2285"]
[BlackElo "2429"]
[TimeControl "180+1"]
[EndTime "15:59:25 PDT"]
[Termination "Schwindle won on time"]

1. e4 {[%clk 0:02:58.2]} 1... e6 {[%clk 0:03:00.3]} 2. d4 {[%clk 0:02:57.8]}
2... d5 {[%clk 0:03:00.5]} 3. Nc3 {[%clk 0:02:57.3]} 3... Nf6 {[%clk 0:03:00.9]}
4. e5 {[%clk 0:02:57.1]} 4... Nfd7 {[%clk 0:03:00.7]} 5. f4 {[%clk 0:02:57.5]}
5... c5 {[%clk 0:03:01]} 6. Nf3 {[%clk 0:02:58.2]} 6... Nc6 {[%clk 0:03:01.4]}
7. Be3 {[%clk 0:02:58.7]} 7... Be7 {[%clk 0:03:00.9]} 8. Be2 {[%clk 0:02:58.5]}
8... f6 {[%clk 0:02:51]} 9. exf6 {[%clk 0:02:56.1]} 9... Nxf6 {[%clk 0:02:45.8]}
10. dxc5 {[%clk 0:02:51.1]} 10... O-O {[%clk 0:02:41.9]} 11. O-O {[%clk
0:02:50]} 11... Qa5 {[%clk 0:02:35.1]} 12. Qd2 {[%clk 0:02:33.7]} 12... Bxc5
{[%clk 0:02:33.9]} 13. Rae1 {[%clk 0:02:32.8]} 13... Ng4 {[%clk 0:02:31.6]} 14.
Bxc5 {[%clk 0:01:34.7]} 14... Qxc5+ {[%clk 0:02:29.9]} 15. Kh1 {[%clk
0:01:34.6]} 15... Nf2+ {[%clk 0:02:30.2]} 16. Rxf2 {[%clk 0:01:31.3]} 16... Qxf2
{[%clk 0:02:31.1]} 17. Qd3 {[%clk 0:01:01.4]} 17... Ne5 {[%clk 0:01:31.7]} 18.
fxe5 {[%clk 0:00:17.8]} 18... Rxf3 {[%clk 0:01:30.5]} 19. Qd1 {[%clk 0:00:17.9]}
19... Rf8 {[%clk 0:01:22.6]} 20. Rf1 {[%clk 0:00:16.1]} 20... Qc5 {[%clk
0:01:21.7]} 21. Rxf8+ {[%clk 0:00:10.7]} 21... Qxf8 {[%clk 0:01:22.6]} 22. Bd3
{[%clk 0:00:08.1]} 22... Bd7 {[%clk 0:01:18.6]} 23. Qh5 {[%clk 0:00:05.8]} 23...
g6 {[%clk 0:01:17.9]} 24. Qg4 {[%clk 0:00:04.8]} 24... Qf7 {[%clk 0:01:06.9]}
25. h4 {[%clk 0:00:03.6]} 25... Rf8 {[%clk 0:01:06.9]} 0-1

[Event "Late-Titled-Tuesday-Blitz-September-12-2023"]
[Site "Chess.com"]
[Date "2023.09.12"]
[Round "11"]
[White "kai_nov"]
[Black "Quattroporte300"]
[Result "0-1"]
[WhiteElo "2243"]
[BlackElo "2395"]
[TimeControl "180+1"]
[EndTime "15:59:35 PDT"]
[Termination "Quattroporte300 won on time"]

1. d4 {[%clk 0:03:00.9]} 1... d5 {[%clk 0:02:57.5]} 2. c4 {[%clk 0:03:00.4]}
2... dxc4 {[%clk 0:02:57.3]} 3. e4 {[%clk 0:02:59.9]} 3... e5 {[%clk 0:02:56.7]}
4. Nf3 {[%clk 0:02:59.4]} 4... exd4 {[%clk 0:02:54.9]} 5. Bxc4 {[%clk
0:02:59.1]} 5... Nc6 {[%clk 0:02:54.3]} 6. O-O {[%clk 0:02:56.7]} 6... Bc5
{[%clk 0:02:50.8]} 7. e5 {[%clk 0:02:48.3]} 7... Nge7 {[%clk 0:02:44.1]} 8. b4
{[%clk 0:01:56]} 8... Bxb4 {[%clk 0:02:40.8]} 9. Bf4 {[%clk 0:01:43]} 9... O-O
{[%clk 0:02:37.5]} 10. Nbd2 {[%clk 0:01:27.3]} 10... Bf5 {[%clk 0:02:31.9]} 11.
Qb3 {[%clk 0:01:20]} 11... Bc3 {[%clk 0:02:25.2]} 12. Ng5 {[%clk 0:01:19.6]}
12... Bg6 {[%clk 0:02:19]} 13. e6 {[%clk 0:01:13.3]} 13... f6 {[%clk 0:02:09.4]}
14. Nf7 {[%clk 0:01:11.9]} 14... Bxf7 {[%clk 0:02:03.6]} 15. exf7+ {[%clk
0:01:12.8]} 15... Kh8 {[%clk 0:02:04.5]} 16. Qxb7 {[%clk 0:00:54.6]} 16... Bxa1
{[%clk 0:02:00.6]} 17. Rxa1 {[%clk 0:00:51.6]} 17... Na5 {[%clk 0:02:00.9]} 18.
Qb5 {[%clk 0:00:48.2]} 18... c6 {[%clk 0:01:54.9]} 19. Qc5 {[%clk 0:00:43.4]}
19... Nxc4 {[%clk 0:01:54.5]} 20. Nxc4 {[%clk 0:00:41.2]} 20... Rxf7 {[%clk
0:01:52.6]} 21. Bd6 {[%clk 0:00:33.5]} 21... Ng6 {[%clk 0:01:43.1]} 22. Qxc6
{[%clk 0:00:30.8]} 22... Rc8 {[%clk 0:01:41.3]} 23. Qd5 {[%clk 0:00:30.4]} 23...
Rd7 {[%clk 0:01:39.8]} 24. Qxd4 {[%clk 0:00:14.3]} 24... Rxc4 {[%clk 0:01:37.7]}
25. Qxc4 {[%clk 0:00:15.2]} 25... Rxd6 {[%clk 0:01:38.2]} 26. g3 {[%clk
0:00:10.7]} 26... Ne5 {[%clk 0:01:38]} 27. Qe4 {[%clk 0:00:09.1]} 27... Rd4
{[%clk 0:01:34.8]} 28. Qb7 {[%clk 0:00:07.9]} 28... h5 {[%clk 0:01:29.1]} 29.
Kg2 {[%clk 0:00:03.4]} 29... Qd5+ {[%clk 0:01:27.8]} 30. Qxd5 {[%clk 0:00:03.3]}
30... Rxd5 {[%clk 0:01:28.7]} 31. Rc1 {[%clk 0:00:03.4]} 31... Ra5 {[%clk
0:01:24.1]} 32. Rc2 {[%clk 0:00:01.9]} 32... Kg8 {[%clk 0:01:23.7]} 0-1